bitfinex/quotes_SOLUSD_20230120
["timestamp","ask_amount","ask_price","bid_price","bid_amount"]
[1674192684941,35.58,21.08,21.061,0.96]
[1674192685152,10.0,21.084,21.062,46.57]
[1674192685364,10.0,21.084,21.063,0.96]
[1674192685592,10.0,21.084,21.064,35.61]
[1674192685803,10.0,21.084,21.066,10.0]
[1674192686007,45.58,21.084,21.067,55.6]
[1674192686409,10.0,21.084,21.067,55.6]
[1674192686616,10.0,21.084,21.068,10.0]
[1674192686831,156.7038,21.086,21.07,10.0]
[1674192687046,121.1338,21.086,21.071,35.6]
[1674192687274,10.0,21.085,21.071,35.6]
[1674192688428,10.0,21.088,21.071,48.0050308]
[1674192688743,20.0,21.087,21.072,10.0]
[1674192688940,20.0,21.087,21.073,35.59]
[1674192690208,20.0,21.087,21.071,35.6]
[1674192690421,10.0,21.086,21.071,35.6]
[1674192690622,18.92,21.085,21.071,35.6]
[1674192694637,18.92,21.085,21.072,10.0]
[1674192694825,18.92,21.085,21.073,35.59]
[1674192695873,10.0,21.089,21.074,10.0]
[1674192696092,35.56,21.096,21.075,55.59]
[1674192696823,10.0,21.095,21.077,10.0]
[1674192697159,10.0,21.093,21.079,10.0]
[1674192697474,18.92,21.092,21.079,10.0]
[1674192698205,17.0,21.091,21.078,35.59]
[1674192698398,1.92,21.09,21.078,35.59]
[1674192698606,1.92,21.089,21.078,35.59]
[1674192698936,11.92,21.092,21.078,35.59]
[1674192699143,17.0,21.091,21.078,35.59]
[1674192699362,0.96,21.09,21.079,10.0]
[1674192699678,10.0,21.096,21.081,10.0]
[1674192699869,126.8194,21.097,21.081,10.0]
[1674192700088,126.8194,21.097,21.082,35.58]
[1674192700415,126.8194,21.097,21.083,10.0]
[1674192700603,116.8194,21.097,21.083,10.0]
[1674192700814,116.8194,21.097,21.085,10.0]
[1674192701025,10.0,21.101,21.085,10.0]
[1674192701336,10.0,21.099,21.085,10.0]
[1674192701546,20.0,21.098,21.085,10.0]
[1674192701987,1.92,21.097,21.084,35.58]
[1674192702388,1.92,21.097,21.085,10.0]
[1674192703567,18.92,21.097,21.085,10.0]
[1674192704303,18.92,21.097,21.084,35.58]
[1674192704803,18.92,21.097,21.083,10.0]
[1674192707219,18.92,21.097,21.082,35.58]
[1674192707654,35.56,21.096,21.08,35.58]
[1674192707866,28.92,21.095,21.078,35.59]
[1674192708088,28.92,21.095,21.079,10.0]
[1674192708269,28.92,21.095,21.08,35.58]
[1674192712180,18.92,21.095,21.081,10.0]
[1674192713435,10.0,21.094,21.08,35.58]
[1674192713651,18.92,21.093,21.08,35.58]
[1674192713960,17.0,21.093,21.081,10.0]
[1674192714160,20.0,21.098,21.081,10.0]
[1674192714371,20.0,21.098,21.082,35.58]
[1674192714680,20.0,21.097,21.083,10.0]
[1674192715539,18.92,21.096,21.083,10.0]
[1674192715852,18.92,21.096,21.082,35.58]
[1674192717034,20.0,21.097,21.083,10.96]
[1674192717337,20.0,21.098,21.083,10.96]
[1674192717977,10.0,21.097,21.083,10.96]
[1674192718189,17.0,21.096,21.083,10.96]
[1674192718590,17.0,21.096,21.082,35.58]
[1674192718797,10.96,21.095,21.082,35.58]
[1674192719114,17.96,21.094,21.079,22.4050308]
[1674192719353,0.96,21.093,21.08,35.58]
[1674192720059,17.0,21.094,21.08,35.58]
[1674192720270,17.0,21.094,21.081,10.0]
[1674192720482,17.0,21.094,21.082,35.58]
[1674192720811,17.0,21.094,21.081,10.0]
[1674192721759,0.96,21.093,21.081,10.0]
[1674192724603,55.55,21.098,21.081,10.0]
[1674192724785,20.0,21.098,21.083,10.0]
[1674192726170,17.96,21.097,21.082,35.58]
[1674192726378,0.96,21.096,21.082,35.58]
[1674192726596,0.96,21.095,21.082,35.58]
[1674192726781,17.96,21.095,21.082,35.58]
[1674192728276,17.96,21.095,21.081,45.58]
[1674192728463,10.0,21.094,21.081,35.58]
[1674192728673,17.0,21.093,21.081,35.58]
[1674192729302,17.0,21.093,21.08,25.25]
[1674192729303,0.96,21.092,21.08,15.25]
[1674192729522,10.96,21.092,21.08,15.25]
[1674192729729,17.0,21.091,21.08,15.25]
[1674192730999,17.0,21.091,21.081,35.58]
[1674192731317,17.0,21.091,21.08,15.25]
[1674192733310,17.0,21.091,21.081,35.58]
[1674192734048,0.96,21.092,21.081,35.58]
[1674192734257,17.0,21.093,21.081,35.58]
[1674192734464,55.55,21.098,21.082,10.0]
[1674192734665,35.54,21.104,21.083,56.54]
[1674192734878,35.54,21.105,21.084,0.96]
[1674192735090,10.0,21.104,21.085,35.57]
[1674192735303,35.54,21.103,21.087,10.0]
[1674192735945,10.0,21.104,21.09,15.33]
[1674192736266,10.0,21.104,21.091,10.0]
[1674192736879,10.0,21.104,21.09,15.33]
[1674192737093,10.0,21.104,21.088,35.57]
[1674192737094,45.54,21.104,21.088,35.57]
[1674192737401,10.0,21.102,21.087,117.9889]
[1674192737605,18.92,21.101,21.087,117.9889]
[1674192737838,10.0,21.1,21.087,117.9889]
[1674192738039,18.92,21.099,21.087,117.9889]
[1674192738268,20.0,21.098,21.085,10.0]
[1674192738570,18.92,21.097,21.083,35.58]
[1674192739319,10.0,21.096,21.083,35.58]
[1674192739503,17.96,21.095,21.083,35.58]
[1674192740250,10.0,21.094,21.083,35.58]
[1674192740469,18.92,21.093,21.078,35.59]
[1674192740982,10.0,21.092,21.078,35.59]
[1674192741197,17.96,21.091,21.078,35.59]
[1674192742153,35.55,21.101,21.08,15.33]
[1674192742345,45.54,21.105,21.082,10.0]
[1674192742555,10.0,21.105,21.083,73.54]
[1674192742774,10.0,21.105,21.084,10.96]
[1674192742980,10.0,21.105,21.086,10.0]
[1674192743192,10.0,21.105,21.091,10.0]
[1674192743631,10.0,21.105,21.091,45.56]
[1674192744030,35.54,21.107,21.092,0.96]
[1674192744243,10.0,21.108,21.093,10.0]
[1674192744452,20.0,21.107,21.093,10.0]
[1674192745495,20.0,21.107,21.091,45.56]
[1674192746146,18.92,21.106,21.091,45.56]
[1674192750654,20.0,21.107,21.092,1.92]
[1674192750864,35.53,21.113,21.092,38.92]
[1674192751084,35.52,21.116,21.093,47.9650308]
[1674192751291,35.52,21.116,21.094,31.92]
[1674192751519,150.9208,21.117,21.095,35.56]
[1674192751719,10.0,21.116,21.097,10.0]
[1674192752037,0.96,21.115,21.098,35.55]
[1674192752236,10.0,21.116,21.098,148.7904]
[1674192752447,59.27576951,21.115,21.098,148.7904]
[1674192752667,10.0,21.114,21.098,148.7904]
[1674192752887,10.0,21.114,21.098,113.2404]
[1674192753407,35.52,21.115,21.099,10.0]
[1674192753610,45.52,21.116,21.099,10.0]
[1674192754555,45.52,21.116,21.099,45.55]
[1674192754880,10.0,21.114,21.099,10.0]
[1674192755066,18.92,21.113,21.099,10.0]
[1674192756235,18.92,21.113,21.098,148.7904]
[1674192756458,79.28576951,21.112,21.093,35.56]
[1674192756661,17.96,21.111,21.092,35.56]
[1674192756976,10.0,21.109,21.093,10.0]
[1674192757187,37.96,21.108,21.093,10.0]
[1674192757618,0.96,21.107,21.093,10.0]
[1674192757795,0.96,21.107,21.088,22.4050308]
[1674192757796,0.96,21.106,21.091,45.56]
[1674192758005,0.96,21.105,21.091,35.56]
[1674192758220,0.96,21.104,21.09,15.22]
[1674192758432,10.96,21.103,21.09,15.22]
[1674192758648,17.96,21.102,21.09,15.22]
[1674192761604,0.96,21.101,21.09,15.22]
[1674192761818,0.96,21.1,21.09,15.22]
[1674192762027,0.96,21.099,21.09,15.22]
[1674192762218,0.96,21.098,21.09,15.22]
[1674192762643,0.96,21.098,21.087,229.8742]
[1674192764540,0.96,21.098,21.088,10.0]
[1674192764967,35.54,21.104,21.088,10.0]
[1674192765178,35.54,21.104,21.09,15.22]
[1674192765398,35.54,21.106,21.09,15.22]
[1674192765597,35.54,21.106,21.091,10.0]
[1674192766426,18.92,21.105,21.09,15.22]
[1674192766639,10.0,21.104,21.09,15.22]
[1674192766863,18.92,21.103,21.09,15.22]
[1674192767792,10.0,21.102,21.09,15.22]
[1674192768001,18.92,21.101,21.089,10.0]
[1674192770435,18.92,21.101,21.088,35.57]
[1674192771270,18.92,21.101,21.082,12.4050308]
[1674192771271,55.55,21.1,21.082,12.4050308]
[1674192771469,11.92,21.099,21.081,35.58]
[1674192771676,55.55,21.098,21.081,35.58]
[1674192771902,10.0,21.096,21.081,35.58]
[1674192772221,18.92,21.095,21.081,35.58]
[1674192775882,54.48,21.095,21.078,35.59]
[1674192776086,10.0,21.094,21.077,113.8821]
[1674192776297,54.48,21.093,21.077,113.8821]
[1674192776521,10.0,21.092,21.077,113.8821]
[1674192776729,18.92,21.091,21.077,113.8821]
[1674192777042,10.0,21.09,21.077,113.8821]
[1674192777388,18.92,21.089,21.076,109.142]
[1674192777572,30.0,21.088,21.072,108.2277]
[1674192777785,30.0,21.088,21.073,35.59]
[1674192777786,18.92,21.087,21.073,35.59]
[1674192778007,45.57,21.086,21.066,153.8377]
[1674192778321,1.92,21.085,21.066,153.8377]
[1674192778635,18.92,21.085,21.066,153.8377]
[1674192778852,10.0,21.084,21.067,10.0]
[1674192779166,17.96,21.083,21.068,35.6]
[1674192779359,17.96,21.083,21.069,0.96]
[1674192779569,10.0,21.082,21.07,35.6]
[1674192779809,10.0,21.08,21.07,35.6]
[1674192780198,17.0,21.079,21.068,35.6]
[1674192780527,17.0,21.079,21.067,35.6]
[1674192780717,17.0,21.081,21.067,35.6]
[1674192780926,17.0,21.081,21.068,10.0]
[1674192781156,17.0,21.081,21.069,35.6]
[1674192781687,10.0,21.084,21.07,10.0]
[1674192781999,10.0,21.084,21.07,25.33]
[1674192782216,10.0,21.084,21.072,10.0]
[1674192782419,35.57,21.088,21.072,10.0]
[1674192782628,10.0,21.09,21.073,57.51]
[1674192783031,10.0,21.09,21.074,10.0]
[1674192783258,10.0,21.09,21.075,56.55]
[1674192783788,10.0,21.09,21.075,55.59]
[1674192783984,10.0,21.09,21.076,110.4074]
[1674192784197,10.0,21.09,21.077,55.59]
[1674192785020,17.96,21.089,21.077,55.59]
[1674192785257,10.96,21.088,21.077,55.59]
[1674192785462,17.0,21.087,21.077,55.59]
[1674192786085,17.0,21.087,21.077,35.59]
[1674192786292,17.0,21.087,21.072,35.6]
[1674192786293,1.92,21.086,21.072,35.6]
[1674192786519,35.57,21.085,21.067,35.6]
[1674192786717,35.57,21.085,21.066,143.8377]
[1674192786718,10.0,21.083,21.066,143.8377]
[1674192787043,18.92,21.082,21.066,35.61]
[1674192787250,18.92,21.082,21.065,114.1047]
[1674192787471,35.58,21.081,21.065,114.1047]
[1674192787687,18.92,21.08,21.065,114.1047]
[1674192787902,10.0,21.079,21.065,114.1047]
[1674192788108,17.96,21.078,21.065,114.1047]
[1674192788515,10.0,21.077,21.065,114.1047]
[1674192788716,17.0,21.076,21.065,114.1047]
[1674192788936,10.0,21.075,21.065,114.1047]
[1674192789138,10.0,21.075,21.066,20.0]
[1674192789343,10.0,21.075,21.061,35.61]
[1674192789569,18.92,21.074,21.059,35.62]
[1674192789764,10.0,21.073,21.059,35.62]
[1674192790104,17.0,21.072,21.059,35.62]
[1674192790305,10.96,21.071,21.059,35.62]
[1674192790506,17.0,21.07,21.059,35.62]
[1674192791036,35.57,21.086,21.06,20.47]
[1674192791247,10.0,21.085,21.061,65.61]
[1674192791454,35.58,21.082,21.062,18.92]
[1674192791668,35.58,21.082,21.064,10.0]
[1674192791883,35.58,21.082,21.065,176.3841]
[1674192792286,0.96,21.08,21.065,176.3841]
[1674192792710,17.96,21.08,21.066,10.0]
[1674192792935,17.96,21.08,21.067,55.6]
[1674192793557,17.96,21.08,21.067,20.0]
[1674192794079,0.96,21.079,21.067,20.0]
[1674192794293,0.96,21.078,21.067,20.0]
[1674192794503,0.96,21.077,21.067,20.0]
[1674192794715,0.96,21.076,21.067,20.0]
[1674192795242,17.0,21.08,21.067,20.0]
[1674192795562,0.96,21.079,21.068,10.0]
[1674192795767,0.96,21.078,21.067,20.0]
[1674192797881,17.96,21.078,21.067,20.0]
[1674192798078,10.96,21.077,21.067,20.0]
[1674192798289,17.96,21.076,21.067,20.0]
[1674192798510,17.96,21.076,21.066,20.0]
[1674192798728,0.96,21.076,21.066,20.0]
[1674192799246,0.96,21.076,21.066,30.0]
[1674192799434,0.96,21.076,21.066,20.0]
[1674192800509,0.96,21.075,21.067,10.0]
[1674192800698,0.96,21.074,21.067,10.0]
[1674192801225,0.96,21.074,21.064,35.61]
[1674192801433,0.96,21.073,21.062,35.61]
[1674192801643,0.96,21.073,21.06,10.0]
[1674192801957,17.96,21.073,21.06,10.0]
[1674192802168,17.96,21.073,21.061,45.61]
[1674192802387,17.96,21.073,21.061,10.0]
[1674192802897,0.96,21.073,21.061,10.0]
[1674192804710,0.96,21.072,21.061,10.0]
[1674192804907,0.96,21.071,21.061,10.0]
[1674192806895,0.96,21.071,21.06,10.0]
[1674192806896,36.56,21.07,21.054,146.9985]
[1674192807213,36.56,21.07,21.04,20.58]
[1674192807214,37.96,21.069,21.045,108.2859]
[1674192807428,37.96,21.069,21.046,35.64]
[1674192807429,36.56,21.068,21.046,35.64]
[1674192807633,37.96,21.067,21.046,35.64]
[1674192807848,46.57,21.066,21.046,35.64]
[1674192808069,17.96,21.065,21.046,35.64]
[1674192808272,0.96,21.064,21.047,20.0]
[1674192808480,0.96,21.063,21.048,35.64]
[1674192808694,0.96,21.062,21.048,35.64]
[1674192808911,0.96,21.061,21.048,35.64]
[1674192809120,0.96,21.06,21.048,35.64]
[1674192809314,0.96,21.059,21.048,35.64]
[1674192810062,0.96,21.058,21.046,35.64]
[1674192810278,0.96,21.058,21.047,20.0]
[1674192810992,10.96,21.058,21.045,20.0]
[1674192811207,17.96,21.057,21.045,20.0]
[1674192811415,0.96,21.056,21.045,20.0]
[1674192811629,17.96,21.057,21.044,30.0]
[1674192811844,17.0,21.057,21.045,35.64]
[1674192812053,17.0,21.059,21.046,20.0]
[1674192812267,1.92,21.058,21.046,20.0]
[1674192812690,1.92,21.058,21.047,10.0]
[1674192813005,1.92,21.058,21.046,20.0]
[1674192813402,10.0,21.057,21.046,20.0]
[1674192813618,18.92,21.056,21.045,20.0]
[1674192814375,10.0,21.055,21.044,35.64]
[1674192814562,18.92,21.054,21.041,115.877]
[1674192814777,10.0,21.053,21.041,115.877]
[1674192814981,18.92,21.052,21.041,115.877]
[1674192815208,18.92,21.052,21.033,35.66]
[1674192815404,10.0,21.051,21.034,10.0]
[1674192815614,18.92,21.05,21.036,10.0]
[1674192815844,18.92,21.05,21.037,35.65]
[1674192816882,18.92,21.05,21.036,10.0]
[1674192817092,18.92,21.05,21.035,35.66]
[1674192817411,18.92,21.05,21.035,10.0]
[1674192817618,18.92,21.05,21.036,20.0]
[1674192817942,18.92,21.05,21.035,20.0]
[1674192818134,18.92,21.05,21.036,10.0]
[1674192818343,18.92,21.05,21.037,20.0]
[1674192818766,18.92,21.05,21.038,10.0]
[1674192818974,18.92,21.05,21.037,20.0]
[1674192818975,11.92,21.05,21.037,20.0]
[1674192819189,17.0,21.049,21.037,20.0]
[1674192819412,1.92,21.048,21.037,20.0]
[1674192820460,11.92,21.048,21.035,20.0]
[1674192820660,17.0,21.047,21.034,20.0]
[1674192820863,1.92,21.046,21.034,55.66]
[1674192821821,1.92,21.046,21.035,10.0]
[1674192822043,1.92,21.046,21.036,20.0]
[1674192822669,1.92,21.046,21.035,30.0]
[1674192823418,35.63,21.052,21.035,30.0]
[1674192823601,35.63,21.054,21.036,35.66]
[1674192823813,35.63,21.054,21.037,20.0]
[1674192824344,35.63,21.054,21.038,10.0]
[1674192824652,0.96,21.052,21.037,20.0]
[1674192824870,10.96,21.051,21.037,20.0]
[1674192825176,17.96,21.05,21.036,55.66]
[1674192825387,0.96,21.049,21.037,10.0]
[1674192825603,0.96,21.048,21.031,35.66]
[1674192825816,0.96,21.048,21.029,35.67]
[1674192825817,60.35576951,21.048,21.029,35.67]
[1674192826008,37.96,21.047,21.023,35.68]
[1674192826232,37.96,21.047,21.024,10.0]
[1674192826233,10.96,21.046,21.024,10.0]
[1674192826560,17.96,21.045,21.025,35.68]
[1674192826773,0.96,21.044,21.026,10.0]
[1674192826977,0.96,21.043,21.027,52.67]
[1674192827292,0.96,21.042,21.028,10.0]
[1674192827486,0.96,21.042,21.029,35.67]
[1674192827700,0.96,21.042,21.03,10.0]
[1674192827911,0.96,21.042,21.032,10.0]
[1674192829701,0.96,21.043,21.032,10.0]
[1674192829911,0.96,21.044,21.032,10.0]
[1674192830121,1.92,21.044,21.032,10.0]
[1674192830440,35.63,21.054,21.034,10.0]
[1674192830643,10.0,21.053,21.036,10.0]
[1674192830853,10.0,21.053,21.037,55.65]
[1674192831069,10.0,21.053,21.038,10.0]
[1674192831286,10.0,21.053,21.039,35.65]
[1674192831717,0.96,21.052,21.039,35.65]
[1674192831929,10.96,21.051,21.039,35.65]
[1674192832136,37.96,21.05,21.037,35.65]
[1674192832333,10.0,21.048,21.032,116.2735]
[1674192832542,74.56,21.047,21.031,35.66]
[1674192832755,74.56,21.047,21.027,35.67]
[1674192832964,10.0,21.046,21.027,35.67]
[1674192833175,54.56,21.045,21.029,35.67]
[1674192833377,54.56,21.045,21.03,10.0]
[1674192834023,18.92,21.045,21.03,10.0]
[1674192834852,18.92,21.045,21.031,35.66]
[1674192835064,17.0,21.044,21.032,10.0]
[1674192835288,1.92,21.043,21.032,10.0]
[1674192835473,10.0,21.051,21.033,35.66]
[1674192835688,35.63,21.054,21.034,20.0]
[1674192835909,35.63,21.054,21.035,35.66]
[1674192836114,35.63,21.054,21.036,20.0]
[1674192836325,53.75576951,21.053,21.032,10.0]
[1674192836558,35.63,21.052,21.032,10.0]
[1674192836746,10.0,21.05,21.032,10.0]
[1674192836962,72.63,21.049,21.032,10.0]
[1674192837272,10.96,21.048,21.032,10.0]
[1674192837505,73.6,21.047,21.032,10.0]
[1674192837696,0.96,21.046,21.032,10.0]
[1674192837895,0.96,21.045,21.032,10.0]
[1674192838105,0.96,21.045,21.03,10.0]
[1674192838645,17.96,21.045,21.03,10.0]
[1674192838854,0.96,21.044,21.03,10.0]
[1674192839049,10.96,21.044,21.029,35.67]
[1674192839259,17.96,21.043,21.028,10.0]
[1674192839480,10.96,21.042,21.025,10.0]
[1674192839701,17.96,21.041,21.027,20.0]
[1674192839908,0.96,21.04,21.027,20.0]
[1674192840115,0.96,21.039,21.027,20.0]
[1674192840340,0.96,21.038,21.027,20.0]
[1674192840549,0.96,21.037,21.027,20.0]
[1674192840775,0.96,21.036,21.026,20.0]
[1674192840953,35.65,21.041,21.028,10.0]
[1674192841169,35.64,21.045,21.028,10.0]
[1674192841701,35.64,21.045,21.027,45.67]
[1674192841702,43.75576951,21.043,21.027,35.67]
[1674192841914,10.0,21.041,21.024,35.68]
[1674192842122,10.0,21.039,21.024,35.68]
[1674192842345,38.92,21.038,21.023,35.68]
[1674192842653,10.0,21.037,21.023,35.68]
[1674192842971,18.92,21.036,21.023,35.68]
[1674192843187,18.92,21.036,21.022,146.7664]
[1674192845163,18.92,21.036,21.023,10.0]
[1674192845379,0.96,21.036,21.024,35.68]
[1674192846011,10.96,21.036,21.024,35.68]
[1674192846226,17.0,21.035,21.023,35.68]
[1674192846430,0.96,21.034,21.023,35.68]
[1674192846643,45.65,21.041,21.023,35.68]
[1674192846838,45.54628658,21.044,21.024,20.0]
[1674192847057,9.90628658,21.044,21.026,10.0]
[1674192847264,35.64,21.044,21.027,55.67]
[1674192847585,35.64,21.048,21.027,67.71435785]
[1674192847797,35.63,21.051,21.028,0.96]
[1674192848010,35.63,21.051,21.03,10.0]
[1674192848204,35.63,21.051,21.031,35.66]
[1674192848205,10.0,21.05,21.031,35.66]
[1674192848416,10.0,21.05,21.032,108.3601]
[1674192848731,59.38576951,21.051,21.034,10.0]
[1674192849265,10.0,21.049,21.033,35.66]
[1674192849478,20.0,21.048,21.033,35.66]
[1674192849894,20.0,21.048,21.034,10.0]
[1674192850223,20.0,21.049,21.034,10.0]
[1674192850427,20.0,21.05,21.034,10.0]
[1674192850620,35.63,21.049,21.034,10.0]
[1674192850947,20.0,21.048,21.034,10.0]
[1674192851165,17.96,21.047,21.033,45.66]
[1674192851496,0.96,21.046,21.033,10.0]
[1674192851693,0.96,21.045,21.033,10.0]
[1674192851885,0.96,21.044,21.033,10.0]
[1674192852211,0.96,21.043,21.033,10.0]
[1674192852418,0.96,21.042,21.033,10.0]
[1674192852632,0.96,21.044,21.034,35.66]
[1674192852843,0.96,21.046,21.035,10.0]
[1674192853557,24.71576951,21.046,21.034,35.66]
[1674192853766,17.0,21.045,21.034,35.66]
[1674192853983,0.96,21.044,21.034,35.66]
[1674192854200,0.96,21.043,21.034,35.66]
[1674192854407,0.96,21.042,21.035,10.0]
[1674192854614,0.96,21.041,21.035,10.0]
[1674192855155,0.96,21.041,21.032,108.3601]
[1674192855377,0.96,21.04,21.032,108.3601]
[1674192855574,0.96,21.039,21.032,108.3601]
[1674192855992,0.96,21.038,21.032,108.3601]
[1674192857045,0.96,21.038,21.033,10.0]
[1674192857252,52.64,21.046,21.033,10.0]
[1674192857461,35.64,21.047,21.033,10.0]
[1674192857669,20.0,21.048,21.033,45.66]
[1674192857880,78.46136951,21.054,21.034,32.04435785]
[1674192858102,54.7056,21.054,21.035,35.66]
[1674192858421,54.7056,21.054,21.036,20.0]
[1674192858627,54.7056,21.054,21.037,35.65]
[1674192859028,54.7056,21.054,21.038,10.0]
[1674192859262,23.75576951,21.053,21.039,35.65]
[1674192859465,54.7056,21.054,21.039,35.65]
[1674192859687,23.75576951,21.053,21.04,10.0]
[1674192859899,19.5,21.052,21.038,10.0]
[1674192860088,45.63,21.051,21.035,10.0]
[1674192860297,69.38576951,21.051,21.034,35.66]
[1674192860508,42.67576951,21.05,21.034,35.66]
[1674192861049,33.75576951,21.049,21.034,35.66]
[1674192861246,73.6,21.048,21.032,108.3601]
[1674192861461,0.96,21.047,21.032,108.3601]
[1674192861671,0.96,21.046,21.032,108.3601]
[1674192861868,51.71576951,21.046,21.032,108.3601]
[1674192862083,41.71576951,21.045,21.032,108.3601]
[1674192862316,10.96,21.044,21.032,108.3601]
[1674192862521,53.6,21.043,21.024,35.68]
[1674192862726,20.96,21.042,21.023,35.68]
[1674192862932,45.65,21.041,21.023,35.68]
[1674192863145,1.92,21.04,21.023,35.68]
[1674192863560,1.92,21.04,21.024,10.0]
[1674192863788,1.92,21.04,21.025,35.68]
[1674192864001,1.92,21.04,21.027,10.0]
[1674192864187,1.92,21.04,21.028,35.67]
[1674192864398,1.92,21.04,21.029,10.0]
[1674192865894,1.92,21.04,21.028,35.67]
[1674192866078,1.92,21.04,21.027,45.67]
[1674192867150,17.0,21.042,21.027,45.67]
[1674192868103,45.63,21.049,21.027,45.67]
[1674192868297,45.63,21.049,21.027,158.982]
[1674192868722,164.57993902,21.047,21.027,158.982]
[1674192868931,140.82416951,21.047,21.027,158.982]
[1674192869127,27.96,21.046,21.027,158.982]
[1674192869340,0.96,21.045,21.027,158.982]
[1674192869549,0.96,21.044,21.027,158.982]
[1674192869760,0.96,21.043,21.027,158.982]
[1674192869970,0.96,21.042,21.027,158.982]
[1674192870181,140.82416951,21.047,21.027,158.982]
[1674192871889,10.0,21.046,21.027,158.982]
[1674192872301,33.75576951,21.046,21.027,158.982]
[1674192872518,18.92,21.045,21.027,158.982]
[1674192872831,30.0,21.044,21.027,35.67]
[1674192873044,54.56,21.043,21.023,35.68]
[1674192873360,10.0,21.041,21.023,35.68]
[1674192873563,75.04,21.04,21.021,123.5894]
[1674192873775,10.0,21.038,21.022,10.0]
[1674192873967,74.57,21.037,21.022,10.0]
[1674192874177,18.92,21.037,21.022,10.0]
[1674192875774,18.92,21.037,21.021,113.5894]
[1674192875963,10.0,21.035,21.021,113.5894]
[1674192876176,18.92,21.034,21.021,113.5894]
[1674192876509,23.75576951,21.033,21.021,113.5894]
[1674192876705,17.96,21.032,21.021,113.5894]
[1674192876915,0.96,21.031,21.021,113.5894]
[1674192877235,0.96,21.03,21.021,113.5894]
[1674192877445,0.96,21.029,21.021,113.5894]
[1674192877795,0.96,21.028,21.021,113.5894]